bitfinex/quotes_ETHUSD_20250720
["timestamp","ask_amount","ask_price","bid_price","bid_amount"]
[1753010643310,20.5380648,3712.2,3712.1,33.39916164]
[1753010643848,21.7680648,3712.2,3712.1,33.81476164]
[1753010644209,21.7680648,3712.2,3712.1,3.81476164]
[1753010644760,21.7680648,3712.2,3712.1,4.62214564]
[1753010644915,21.7680648,3712.2,3712.1,34.62214564]
[1753010645118,22.9980648,3712.2,3712.1,34.62214564]
[1753010645425,22.9980648,3712.2,3712.1,33.81476164]
[1753010646366,23.4575648,3712.2,3712.1,33.81476164]
[1753010646524,26.2258648,3712.2,3712.1,11.92647364]
[1753010646721,26.2258648,3712.2,3712.1,11.65647364]
[1753010647453,26.2258648,3712.2,3712.1,20.81489964]
[1753010647660,25.7663648,3712.2,3712.1,22.22426564]
[1753010647812,25.4580648,3712.2,3712.1,22.22426564]
[1753010648044,25.9175648,3712.2,3712.1,19.44011064]
[1753010648446,25.9175648,3712.2,3712.1,20.06173864]
[1753010649185,25.4580648,3712.2,3712.1,20.06173864]
[1753010649354,26.6880648,3712.2,3712.1,20.06173864]
[1753010649561,26.6880648,3712.2,3712.1,29.84385364]
[1753010649872,26.6880648,3712.2,3712.1,26.68872864]
[1753010650474,26.6880648,3712.2,3712.1,33.26576164]
[1753010650852,27.9180648,3712.2,3712.1,33.26576164]
[1753010651188,27.9180648,3712.2,3712.1,33.02155064]
[1753010651488,28.3775648,3712.2,3712.1,25.21201164]
[1753010651988,27.9180648,3712.2,3712.1,25.21201164]
[1753010652286,29.6075648,3712.2,3712.1,7.09619464]
[1753010652482,1.62,3712.1,3711.4,0.14040708]
[1753010652682,1.62,3711.9,3711.5,5.613648]
[1753010652890,1.62,3711.9,3711.6,3.0]
[1753010653072,1.62,3711.9,3711.8,3.0]
[1753010653253,1.62,3711.9,3711.8,10.987651]
[1753010653590,2.0795,3711.9,3711.8,6.041528]
[1753010653773,3.3095,3711.9,3711.8,3.1344]
[1753010654478,3.3095,3711.9,3711.8,0.1344]
[1753010654877,3.3095,3711.9,3711.8,23.590995]
[1753010655051,3.3095,3711.9,3711.8,23.487292]
[1753010655253,4.5395,3711.9,3711.8,23.487292]
[1753010655451,4.5395,3711.9,3711.8,23.278571]
[1753010655874,4.5395,3711.9,3711.8,24.214391]
[1753010656090,4.5395,3711.9,3711.8,10.855821]
[1753010656698,5.30108418,3711.9,3711.8,11.17912611]
[1753010656987,5.30108418,3711.9,3711.8,33.45770511]
[1753010657795,3.69,3711.9,3711.8,33.45770511]
[1753010657960,4.92,3711.9,3711.8,3.45770511]
[1753010658160,4.92,3711.9,3711.8,31.22009911]
[1753010658374,4.92,3711.9,3711.8,33.03483711]
[1753010658991,4.92,3711.9,3711.8,33.45770511]
[1753010659662,6.15,3711.9,3711.8,33.45770511]
[1753010660192,6.15,3711.9,3711.8,30.77028911]
[1753010660397,6.15,3711.9,3711.8,29.27931911]
[1753010660598,29.1480648,3712.2,3712.1,0.5629]
[1753010660895,28.46446435,3712.2,3712.1,36.38928608]
[1753010661056,24.81703244,3712.2,3712.1,36.8543151]
[1753010661259,24.68257541,3712.2,3712.1,35.2393151]
[1753010661461,24.68257541,3712.2,3712.1,34.7721151]
[1753010661661,24.54811838,3712.2,3712.1,34.7721151]
[1753010662079,24.41366135,3712.2,3712.1,34.7734151]
[1753010662280,25.64366135,3712.2,3712.1,34.7734151]
[1753010662598,25.50920432,3712.2,3712.1,34.7734151]
[1753010662763,9.98861101,3713.0,3712.4,2.1779]
[1753010662964,2.43961498,3713.8,3713.1,3.55]
[1753010663168,2.43961498,3713.8,3713.3,3.55]
[1753010663369,0.4595,3713.7,3713.5,3.0]
[1753010663700,0.4595,3713.7,3713.6,17.62608997]
[1753010663895,2.43961498,3713.8,3713.7,3.0]
[1753010664100,2.43961498,3713.8,3713.7,17.62608997]
[1753010664465,2.43961498,3713.8,3713.7,17.82614186]
[1753010664800,2.30524503,3713.8,3713.7,19.19712809]
[1753010665303,3.53524503,3713.8,3713.7,19.19712809]
[1753010665799,3.40087508,3713.8,3713.7,19.19842809]
[1753010665999,3.26650513,3713.8,3713.7,19.19842809]
[1753010666390,3.13213518,3713.8,3713.7,19.19712809]
[1753010666578,4.36213518,3713.8,3713.7,19.19712809]
[1753010666782,4.36213518,3713.8,3713.7,18.30861912]
[1753010667099,4.36213518,3713.8,3713.7,18.48674214]
[1753010667465,4.36213518,3713.8,3713.7,18.28669025]
[1753010667804,4.36213518,3713.8,3713.7,18.65856723]
[1753010668098,5.59213518,3713.8,3713.7,18.65856723]
[1753010668799,6.06443518,3713.8,3713.7,12.888574]
[1753010669003,5.59213518,3713.8,3713.7,13.70956023]
[1753010669213,5.59213518,3713.8,3713.7,18.65856723]
[1753010669408,6.68776523,3713.8,3713.7,18.97139287]
[1753010669699,6.55339528,3713.8,3713.7,18.97139287]
[1753010669904,6.55339528,3713.8,3713.7,18.97269287]
[1753010670199,6.41902533,3713.8,3713.7,4.88500399]
[1753010670400,6.28465538,3713.8,3713.7,4.88500399]
[1753010670610,6.28465538,3713.8,3713.7,5.01940399]
[1753010670809,7.38028543,3713.8,3713.7,19.30698499]
[1753010671207,7.24591548,3713.8,3713.7,19.30698499]
[1753010671579,7.11157153,3713.8,3713.7,19.30698499]
[1753010671986,6.97722758,3713.8,3713.7,19.30698499]
[1753010672308,8.20722758,3713.8,3713.7,5.01940399]
[1753010672603,8.07288363,3713.8,3713.7,5.01940399]
[1753010672804,7.93853968,3713.8,3713.7,5.01940399]
[1753010673008,7.93853968,3713.8,3713.7,19.30698499]
[1753010673212,7.93853968,3713.8,3713.7,14.62317312]
[1753010673515,8.41083968,3713.8,3713.7,11.90117412]
[1753010673724,9.64083968,3713.8,3713.7,15.70830312]
[1753010673904,9.16853968,3713.8,3713.7,15.70830312]
[1753010674107,9.16853968,3713.8,3713.7,14.07928935]
[1753010674311,9.16853968,3713.8,3713.7,17.07928935]
[1753010674483,9.16853968,3713.8,3713.7,19.80128835]
[1753010675129,10.39853968,3713.8,3713.7,5.51370735]
[1753010675686,10.39853968,3713.8,3713.7,19.80128835]
[1753010676316,10.39853968,3713.8,3713.7,18.98030212]
[1753010676520,11.62853968,3713.8,3713.7,18.98030212]
[1753010677022,12.10083968,3713.8,3713.7,18.98030212]
[1753010678426,11.62853968,3713.8,3713.7,19.80128835]
[1753010678617,12.85853968,3713.8,3713.7,19.80128835]
[1753010679523,12.72417262,3713.8,3713.7,20.11411399]
[1753010679732,12.58980556,3713.8,3713.7,20.11411399]
[1753010679927,13.81980556,3713.8,3713.7,20.11411399]
[1753010680120,13.6854385,3713.8,3713.7,20.11411399]
[1753010680516,13.55107144,3713.8,3713.7,20.11411399]
[1753010681031,13.41670438,3713.8,3713.7,20.11411399]
[1753010681230,14.64670438,3713.8,3713.7,20.11411399]
[1753010681396,14.51233732,3713.8,3713.7,20.11411399]
[1753010681598,14.51233732,3713.8,3713.7,27.98411399]
[1753010681932,14.37797026,3713.8,3713.7,27.98411399]
[1753010682136,14.2436032,3713.8,3713.7,27.98411399]
[1753010682611,15.33923614,3713.8,3713.7,27.98411399]
[1753010683211,15.20487775,3713.8,3713.7,27.98411399]
[1753010683641,15.20487775,3713.8,3713.7,13.69653299]
[1753010684006,16.43487775,3713.8,3713.7,13.69653299]
[1753010685317,17.66487775,3713.8,3713.7,27.98411399]
[1753010686840,18.89487775,3713.8,3713.7,27.98411399]
[1753010687938,18.76051936,3713.8,3713.7,27.98411399]
[1753010688127,19.99051936,3713.8,3713.7,13.69653299]
[1753010688310,19.85616097,3713.8,3713.7,29.59911399]
[1753010688515,19.85616097,3713.8,3713.7,29.60061399]
[1753010688727,19.72180258,3713.8,3713.7,29.60061399]
[1753010689139,19.58744419,3713.8,3713.7,29.60061399]
[1753010689522,20.6830858,3713.8,3713.7,29.60061399]
[1753010690022,20.54872127,3713.8,3713.7,29.60061399]
[1753010690339,19.93435674,3713.8,3713.7,29.60061399]
[1753010690739,21.03199221,3713.8,3713.7,29.60061399]
[1753010691248,20.89762768,3713.8,3713.7,29.60061399]
[1753010691415,20.76326315,3713.8,3713.7,29.59911399]
[1753010691944,20.62889862,3713.8,3713.7,15.31153299]
[1753010692151,20.62889862,3713.8,3713.7,29.59911399]
[1753010692449,21.72453409,3713.8,3713.7,29.59911399]
[1753010692635,21.59016956,3713.8,3713.7,29.59911399]
[1753010692941,21.59016956,3713.8,3713.7,15.31153299]
[1753010693150,21.45580503,3713.8,3713.7,29.59911399]
[1753010693445,21.3214405,3713.8,3713.7,29.04911399]
[1753010693618,22.5514405,3713.8,3713.7,23.60022776]
[1753010693945,22.5514405,3713.8,3713.7,26.74941137]
[1753010694847,22.5514405,3713.8,3713.7,27.29941137]
[1753010695056,23.7814405,3713.8,3713.7,27.29941137]
[1753010695255,23.7814405,3713.8,3713.7,28.91441137]
[1753010695458,23.7814405,3713.8,3713.7,27.67128835]
[1753010695947,23.64708716,3713.8,3713.7,29.58621399]
[1753010696146,23.51273382,3713.8,3713.7,29.58621399]
[1753010696358,24.74273382,3713.8,3713.7,29.58621399]
[1753010696562,24.74273382,3713.8,3713.7,29.60061399]
[1753010696563,22.48838048,3713.8,3713.7,29.60061399]
[1753010696719,21.18838048,3713.8,3713.7,29.60061399]
[1753010697049,18.93402714,3713.8,3713.7,29.60061399]
[1753010697426,18.7996738,3713.8,3713.7,29.60061399]
[1753010697834,19.89532046,3713.8,3713.7,29.60061399]
[1753010698238,19.76096712,3713.8,3713.7,29.60061399]
[1753010698646,19.62661378,3713.8,3713.7,29.60061399]
[1753010698943,19.49226044,3713.8,3713.7,29.04911399]
[1753010699259,20.72226044,3713.8,3713.7,29.60061399]
[1753010699456,12.7179071,3713.8,3713.7,21.73061399]
[1753010699813,12.58355376,3713.8,3713.7,21.72911399]
[1753010700051,12.58355376,3713.8,3713.7,21.73061399]
[1753010700254,12.44920042,3713.8,3713.7,22.53061399]
[1753010700449,13.67920042,3713.8,3713.7,21.97911399]
[1753010700654,13.54484708,3713.8,3713.7,21.97911399]
[1753010700822,11.42484708,3713.8,3713.7,21.83181399]
[1753010701136,11.29049374,3713.8,3713.7,17.21681399]
[1753010701332,11.29049374,3713.8,3713.7,16.39582776]
[1753010701333,11.74159374,3713.8,3713.7,16.39582776]
[1753010701563,11.74159374,3713.8,3713.7,16.84493701]
[1753010701724,12.52049374,3713.8,3713.7,16.84493701]
[1753010702060,12.97159374,3713.8,3713.7,17.21681399]
[1753010702259,12.97159374,3713.8,3713.7,20.21681399]
[1753010702460,12.52049374,3713.8,3713.7,20.21681399]
[1753010703028,12.97159374,3713.8,3713.7,20.76681399]
[1753010703363,13.75049374,3713.8,3713.7,6.47923299]
[1753010703657,13.75049374,3713.8,3713.7,36.47923299]
[1753010704280,13.75049374,3713.8,3713.7,19.55849676]
[1753010704281,14.20159374,3713.8,3713.7,19.55849676]
[1753010704464,14.20159374,3713.8,3713.7,22.25857112]
[1753010704653,15.43159374,3713.8,3713.7,25.02838212]
[1753010705229,15.43159374,3713.8,3713.7,25.57838212]
[1753010705424,15.43159374,3713.8,3713.7,26.38853501]
[1753010705638,15.43159374,3713.8,3713.7,36.16847401]
[1753010706039,16.66159374,3713.8,3713.7,31.31995001]
[1753010706641,16.66159374,3713.8,3713.7,36.16847401]
[1753010706846,16.66159374,3713.8,3713.7,31.66278201]
[1753010707674,17.89159374,3713.8,3713.7,36.16847401]
[1753010707833,17.89159374,3713.8,3713.7,34.84432001]
[1753010708574,17.89159374,3713.8,3713.7,33.50485201]
[1753010708769,17.89159374,3713.8,3713.7,36.16847401]
[1753010709074,19.12159374,3713.8,3713.7,31.76273401]
[1753010709372,19.12159374,3713.8,3713.7,27.65094401]
[1753010709768,19.12159374,3713.8,3713.7,31.66255601]
[1753010709956,19.12159374,3713.8,3713.7,31.39356501]
[1753010710768,20.35159374,3713.8,3713.7,6.30287401]
[1753010710978,20.35159374,3713.8,3713.7,36.30287401]
[1753010711791,20.35159374,3713.8,3713.7,34.18631401]
[1753010712074,19.90049374,3713.8,3713.7,36.30287401]
[1753010712292,21.13049374,3713.8,3713.7,36.60279965]
[1753010712580,21.58159374,3713.8,3713.7,36.60279965]
[1753010712997,21.13049374,3713.8,3713.7,36.60279965]
[1753010713582,22.36049374,3713.8,3713.7,36.60279965]
[1753010714303,20.92611874,3713.8,3713.7,36.60279965]
[1753010714493,20.79174374,3713.8,3713.7,36.60279965]
[1753010714835,20.65740664,3713.8,3713.7,36.60279965]
[1753010715042,21.88740664,3713.8,3713.7,36.60279965]
[1753010715240,21.75306954,3713.8,3713.7,38.21779965]
[1753010715690,3.68831533,3714.1,3713.9,1.615]
[1753010715840,3.42023433,3714.1,3714.0,35.165]
[1753010716045,3.28589723,3714.1,3714.0,37.33577971]
[1753010716572,3.28589723,3714.1,3714.0,37.7042908]
[1753010716775,3.73699723,3714.1,3714.0,32.16741382]
[1753010717235,3.73699723,3714.1,3714.0,35.16741382]
[1753010717439,3.28589723,3714.1,3714.0,35.71741382]
[1753010717680,3.28589723,3714.1,3714.0,36.52756671]
[1753010717884,3.5874444,3714.1,3714.0,36.52756671]
[1753010718953,3.5874444,3714.1,3714.0,6.52756671]
[1753010718954,3.1363444,3714.1,3714.0,6.52756671]
[1753010719145,3.5874444,3714.1,3714.0,6.52756671]
[1753010719479,4.3663444,3714.1,3714.0,6.52756671]
[1753010719675,4.3663444,3714.1,3714.0,36.52756671]
[1753010720160,4.3663444,3714.1,3714.0,44.39756671]
[1753010721293,5.5963444,3714.1,3714.0,44.39756671]
[1753010721883,6.03857466,3714.1,3714.0,44.39756671]
[1753010722172,6.03857466,3714.1,3714.0,43.9592908]
[1753010722749,7.26857466,3714.1,3714.0,28.85832116]
[1753010722950,7.26857466,3714.1,3714.0,20.61644418]
[1753010723182,7.26857466,3714.1,3714.0,29.40470518]
[1753010723344,7.26857466,3714.1,3714.0,11.31872618]
[1753010723684,7.26857466,3714.1,3714.0,10.81592318]
[1753010723871,7.26857466,3714.1,3714.0,13.00913618]
[1753010724072,7.26857466,3714.1,3714.0,4.06070118]
[1753010724073,8.49857466,3714.1,3714.0,4.06070118]
[1753010724290,8.49857466,3714.1,3714.0,14.23890918]
[1753010724456,10.03857466,3714.1,3714.0,6.77016218]
[1753010724639,10.03857466,3714.1,3714.0,1.06070118]
[1753010724843,10.03857466,3714.1,3714.0,9.46322618]
[1753010725177,10.03857466,3714.1,3714.0,5.22985818]
[1753010725485,11.26857466,3714.1,3714.0,3.35979118]
[1753010725644,11.34743213,3714.1,3714.0,0.1344]
[1753010725985,11.34743213,3714.1,3714.0,2.217799]
[1753010726170,12.88743213,3714.1,3714.0,0.1344]
[1753010726376,12.88743213,3714.1,3714.0,3.1344]
[1753010726545,12.88743213,3714.1,3714.0,10.228612]
[1753010726744,14.11743213,3714.1,3714.0,10.497672]
[1753010727046,14.11743213,3714.1,3714.0,10.295806]
[1753010727440,12.49857466,3714.1,3714.0,10.652625]
[1753010727645,12.49857466,3714.1,3714.0,9.61139]
[1753010727858,12.49857466,3714.1,3714.0,3.1344]
[1753010728072,13.72857466,3714.1,3714.0,3.1344]
[1753010728264,13.72857466,3714.1,3714.0,5.136012]
[1753010729561,14.95857466,3714.1,3714.0,5.136012]
[1753010730897,16.18857466,3714.1,3714.0,7.8285268]
[1753010731307,16.18857466,3714.1,3714.0,6.19879178]
[1753010731594,4.92,3714.3,3714.2,2.69236982]
[1753010731794,4.92,3714.3,3714.2,34.96797482]
[1753010731992,4.92,3714.3,3714.2,31.89370337]
[1753010732198,0.002,3714.5,3714.4,5.69222485]
[1753010732393,0.002,3714.5,3714.4,25.06767985]
[1753010732596,0.002,3714.5,3714.4,20.3572874]
[1753010732795,0.002,3714.5,3714.4,13.55200649]
[1753010733097,0.002,3714.5,3714.4,9.77332085]
[1753010733302,0.002,3714.5,3714.4,5.82662485]
[1753010733506,0.002,3714.5,3714.4,8.83833885]
[1753010733813,0.002,3714.5,3714.4,3.1344]
[1753010733814,0.4432,3714.5,3714.4,3.1344]
[1753010733969,1.84072,3714.5,3714.4,3.1344]
[1753010734395,1.6732,3714.5,3714.4,15.94860985]
[1753010734709,3.2348,3714.5,3714.4,9.75909985]
[1753010735417,3.2348,3714.5,3714.4,19.10759185]
[1753010735636,4.4648,3714.5,3714.4,12.93015785]
[1753010735916,4.4648,3714.5,3714.4,12.01277885]
[1753010736221,4.4648,3714.5,3714.4,9.320554]
[1753010736429,5.03448,3714.5,3714.4,3.1344]
[1753010736780,6.26448,3714.5,3714.4,3.1344]
[1753010737564,6.26448,3714.5,3714.4,0.1344]
[1753010738225,7.49448,3714.5,3714.4,0.33698665]
[1753010738431,5.93288,3714.5,3713.7,0.8]
[1753010738628,1.5765,3714.3,3714.2,0.1344]
[1753010738841,1.5765,3714.3,3713.7,0.8]
[1753010739152,1.5765,3714.1,3714.0,0.1344]
[1753010739654,1.7109,3714.0,3713.7,1.0009049]
[1753010739826,2.0177,3713.9,3713.7,1.0009049]
[1753010740016,1.5765,3713.9,3713.7,1.0009049]
[1753010740224,2.0177,3713.8,3713.7,1.0009049]
[1753010741323,3.2477,3713.8,3713.7,1.0009049]
[1753010741537,4.224305,3713.8,3713.7,1.0009049]
[1753010741946,3.2477,3713.8,3713.7,3.69363721]
[1753010742148,3.2477,3713.8,3713.7,33.72591274]
[1753010742347,3.2477,3713.8,3713.7,30.98647074]
[1753010742536,4.4777,3713.8,3713.7,30.98647074]
[1753010742739,4.4777,3713.8,3713.7,23.77779774]
[1753010742923,4.4777,3713.8,3713.7,20.10927274]
[1753010743245,4.4777,3713.8,3713.7,7.80371574]
[1753010743444,4.4777,3713.8,3713.7,21.71036174]
[1753010744142,5.7077,3713.8,3713.7,30.59692774]
[1753010744343,3.69,3713.8,3713.7,29.05735674]
[1753010744861,3.69,3713.8,3713.7,28.62572474]
[1753010745366,3.69,3713.8,3713.7,26.71353574]
[1753010745666,4.92,3713.8,3713.7,25.11092374]
[1753010746260,4.92,3713.8,3713.7,21.64171074]
[1753010747147,1.23,3713.8,3713.7,23.19370321]
[1753010747458,0.11992147,3713.8,3713.7,22.77592121]
[1753010748371,0.56112147,3713.8,3713.7,22.33300221]
[1753010748589,1.79112147,3713.8,3713.7,16.53040421]
[1753010749363,1.79112147,3713.8,3713.7,17.39026921]
[1753010749774,1.79112147,3713.8,3713.7,3.1744049]
[1753010750091,2.57992147,3713.8,3713.7,33.21863721]
[1753010750255,2.57992147,3713.8,3713.7,22.10400047]
[1753010750453,1.23,3714.1,3714.0,7.3579148]
[1753010750760,1.23,3714.1,3714.0,38.55631605]
[1753010751360,2.46,3714.1,3714.0,38.55631605]
[1753010751742,2.46,3714.1,3714.0,39.00901605]
[1753010752171,2.46,3714.1,3714.0,39.14341605]
[1753010752979,1.00032159,3714.1,3714.0,39.14341605]
[1753010753275,4.922,3714.5,3714.4,2.69222485]
[1753010753452,4.922,3714.5,3714.4,35.69222485]
[1753010753653,4.922,3714.5,3714.4,35.82662485]
[1753010754256,6.152,3714.5,3714.4,35.82662485]
[1753010755553,7.382,3714.5,3714.4,35.82662485]
[1753010755765,7.382,3714.5,3714.4,34.99324185]
[1753010755962,0.002,3714.9,3714.8,2.69193496]
[1753010756172,0.002,3714.9,3714.8,8.30228762]
[1753010756480,0.002,3714.9,3714.8,6.44190729]
[1753010756655,0.002,3714.9,3714.8,27.29341929]
[1753010756849,1.232,3714.9,3714.8,26.96429962]
[1753010757079,1.232,3714.9,3714.8,25.90416262]
[1753010757443,1.232,3714.9,3714.8,27.35277462]
[1753010757653,1.232,3714.9,3714.8,20.19898662]
[1753010757978,1.677,3714.9,3714.8,12.31645096]
[1753010758362,2.907,3714.9,3714.8,12.31645096]
[1753010758679,2.907,3714.9,3714.8,17.87158396]
[1753010759583,2.907,3714.9,3714.8,19.90877796]
[1753010759778,4.137,3714.9,3714.8,11.502882]
[1753010759978,4.70712,3714.9,3714.8,3.0]
[1753010760279,1.6058,3714.8,3713.9,1.22795466]
[1753010760484,1.6058,3714.8,3714.0,2.55478]
[1753010760691,0.445,3714.7,3714.1,3.0]
[1753010760875,0.445,3714.7,3714.3,3.0]
[1753010761185,0.445,3714.6,3714.5,3.0]
[1753010761344,0.445,3714.6,3714.5,22.060932]
[1753010761550,0.445,3714.6,3714.5,25.060932]
[1753010761753,1.14228,3714.6,3714.5,3.0]
[1753010762088,1.6058,3714.5,3713.6,2.69380212]
[1753010762289,1.6058,3714.5,3713.7,8.206335]
[1753010762474,1.6058,3714.3,3713.9,3.0]
[1753010762673,1.6058,3714.3,3713.7,3.0]
[1753010762674,0.445,3714.2,3714.1,3.0]
[1753010762861,0.445,3714.2,3714.1,2.124043]
[1753010763063,0.445,3714.2,3713.9,3.0]
[1753010763253,0.445,3714.2,3713.7,0.20313091]
[1753010763458,0.77308,3714.2,3713.6,0.001]
[1753010763965,0.445,3714.1,3713.6,0.001]
[1753010764582,1.5692,3714.0,3713.6,0.001]
[1753010765164,0.445,3713.9,3713.6,0.001]
[1753010765481,0.445,3713.9,3713.7,8.859957]
[1753010765668,2.7992,3714.0,3713.8,3.0]
[1753010765870,2.7992,3714.0,3713.6,0.42185266]
[1753010766071,2.7992,3714.0,3713.9,0.1344]
[1753010766274,2.7992,3714.0,3713.9,3.1344]
[1753010766489,4.43212,3714.0,3713.9,0.1344]
[1753010766657,4.87712,3714.0,3713.9,0.1344]
[1753010767591,1.7036,3713.9,3713.7,0.20223562]
[1753010767895,2.1486,3713.9,3713.6,0.001]
[1753010768084,4.979,3713.8,3713.6,0.001]
[1753010768282,4.979,3713.8,3713.7,0.1344]
[1753010768481,6.043112,3713.8,3713.6,0.001]
[1753010768694,0.445,3713.7,3713.6,0.001]
[1753010769217,1.675,3713.7,3713.6,0.20321546]
[1753010769493,1.675,3713.7,3713.6,0.001]
[1753010769794,3.3058,3713.7,3713.6,0.001]
[1753010770294,7.8398,3713.7,3713.6,0.001]
[1753010770613,9.0698,3713.7,3713.6,0.001]
[1753010770813,10.4924832,3713.7,3713.6,0.001]
[1753010771760,11.7224832,3713.7,3713.6,0.001]
[1753010771970,11.7224832,3713.7,3713.6,0.20354296]
[1753010772165,11.7224832,3713.7,3713.6,0.001]
[1753010772965,11.7224832,3713.7,3713.6,0.2018082]
[1753010773165,12.9524832,3713.7,3713.6,0.2018082]
[1753010773998,12.9514832,3713.7,3713.6,0.2018082]
[1753010774518,14.1814832,3713.7,3713.6,0.2018082]
[1753010775882,15.4114832,3713.7,3713.6,0.2018082]
[1753010777076,15.2188,3713.7,3713.6,0.2018082]
[1753010778577,16.4488,3713.7,3713.6,0.2018082]
[1753010779907,16.4488,3713.7,3713.6,1.0018082]
[1753010780109,17.6788,3713.7,3713.6,1.0018082]
[1753010781578,18.9088,3713.7,3713.6,1.0018082]
[1753010781878,21.222412,3713.7,3713.6,1.0018082]
[1753010782681,16.689412,3713.7,3713.6,1.0018082]
[1753010782909,22.584812,3713.7,3713.6,1.0018082]
[1753010783915,22.583812,3713.7,3713.6,1.0018082]
[1753010784120,18.053812,3713.7,3713.6,1.0018082]
[1753010784328,23.813812,3713.7,3713.6,1.0018082]
[1753010785596,25.043812,3713.7,3713.6,1.0018082]
[1753010786912,26.272812,3713.7,3713.6,1.0018082]
[1753010788288,27.502812,3713.7,3713.6,0.2018082]
[1753010789617,28.732812,3713.7,3713.6,0.2018082]
[1753010790124,23.758812,3713.7,3713.6,0.2018082]
[1753010790300,25.8388,3713.7,3713.6,0.2018082]
[1753010790687,19.68,3713.7,3713.6,0.2018082]
[1753010790888,24.207,3713.7,3713.6,21.1760452]
[1753010791132,25.437,3713.7,3713.6,13.5309622]
[1753010791425,30.26236318,3713.7,3713.6,3.2018082]
[1753010792634,31.49236318,3713.7,3713.6,3.2018082]
[1753010792831,26.96536318,3713.7,3713.6,3.2018082]
[1753010793039,31.49136318,3713.7,3713.6,3.2018082]
[1753010794146,32.72136318,3713.7,3713.6,3.2018082]
[1753010795227,29.9624,3713.7,3713.6,3.2018082]
[1753010795431,31.1924,3713.7,3713.6,3.2018082]
[1753010796708,32.4224,3713.7,3713.2,0.92223517]
[1753010796908,0.4599,3713.6,3713.2,0.92223517]
[1753010797220,7.28296318,3713.5,3713.2,0.92223517]
[1753010797545,4.9839,3713.4,3713.2,0.92223517]
[1753010797948,4.524,3713.4,3713.2,0.92223517]
[1753010798257,0.4599,3713.3,3713.2,0.92223517]
[1753010799108,1.5967,3713.2,3712.9,0.001]
[1753010799313,4.523,3713.1,3712.9,0.001]
[1753010799542,4.9829,3713.1,3712.9,0.001]
[1753010799837,4.9829,3713.0,3712.9,0.001]
[1753010801137,6.2129,3713.0,3712.9,0.001]
[1753010801345,7.20658863,3713.0,3712.9,0.001]
[1753010802266,2.68358863,3713.0,3712.9,0.001]
[1753010802430,8.43558863,3713.0,3712.9,0.001]
[1753010802630,8.43558863,3713.0,3712.9,0.20111083]
[1753010803365,7.97568863,3713.0,3712.9,0.20111083]
[1753010803667,8.43558863,3713.0,3712.9,0.20111083]
[1753010803843,9.66558863,3713.0,3712.9,0.20111083]
[1753010804883,9.66358863,3713.0,3712.9,0.20111083]
[1753010805263,10.89358863,3713.0,3712.9,0.20111083]
[1753010805971,12.49908863,3713.0,3712.9,0.20111083]
[1753010806486,13.04908863,3713.0,3712.9,0.20111083]
[1753010806684,14.27908863,3713.0,3712.9,0.20111083]
[1753010808092,15.50908863,3713.0,3712.9,0.20111083]
[1753010808782,15.50908863,3713.0,3712.9,0.001]
[1753010809287,15.50708863,3713.0,3712.9,0.001]
[1753010809454,16.73708863,3713.0,3712.9,0.19909591]
[1753010809676,16.73708863,3713.0,3712.9,0.001]
[1753010810871,17.96708863,3713.0,3712.9,0.001]
[1753010812722,19.19708863,3713.0,3712.9,0.001]
[1753010813710,14.67908863,3713.0,3712.9,0.001]
[1753010813984,20.42508863,3713.0,3712.9,0.001]
[1753010814210,14.89918863,3713.0,3712.9,0.20353526]
[1753010814381,19.87508863,3713.0,3712.9,0.001]
[1753010814582,19.87508863,3713.0,3712.9,0.801]
[1753010815117,16.58908863,3713.0,3712.9,0.801]
[1753010815293,21.10408863,3713.0,3712.9,0.801]
[1753010815498,16.58908863,3713.0,3712.9,0.801]
[1753010815699,21.10408863,3713.0,3712.9,0.801]
[1753010816278,16.58908863,3713.0,3712.9,0.801]
[1753010816584,21.10408863,3713.0,3712.9,0.801]
[1753010816781,17.81908863,3713.0,3712.9,0.801]
[1753010817118,17.81908863,3713.0,3712.9,0.99984428]
[1753010817119,22.33308863,3713.0,3712.9,0.99984428]
[1753010817996,17.81908863,3713.0,3712.9,0.99984428]
[1753010818190,23.56308863,3713.0,3712.9,0.99984428]
[1753010819603,20.27908863,3713.0,3712.9,0.99984428]
[1753010819806,24.79208863,3713.0,3712.9,0.99984428]
[1753010820843,24.79108863,3713.0,3712.9,0.99984428]
[1753010821016,26.57108863,3713.0,3712.9,0.99984428]
[1753010822432,27.80108863,3713.0,3712.9,0.99984428]
[1753010822636,23.28908863,3713.0,3712.9,0.99984428]
[1753010822798,27.79908863,3713.0,3712.9,0.99984428]
[1753010823631,27.79908863,3713.0,3712.9,0.09373539]
[1753010823632,28.00508863,3713.0,3712.9,0.09373539]
[1753010823836,0.1344,3712.9,3712.4,0.001]
[1753010824039,7.26796318,3712.8,3712.4,0.1986573]
[1753010824237,0.1344,3712.5,3712.4,0.001]
[1753010824453,4.6434,3712.5,3712.4,0.001]
[1753010824604,5.1,3712.5,3712.4,0.001]
[1753010825449,6.33,3712.5,3712.4,0.001]
[1753010825648,7.23889632,3712.5,3712.4,0.001]
[1753010826719,6.78229632,3712.5,3712.4,0.20480993]
[1753010826960,10.51899632,3712.5,3712.4,0.001]
[1753010827311,6.00999632,3712.5,3712.4,0.001]
[1753010827513,13.34799632,3712.5,3712.4,0.001]
[1753010828341,14.57799632,3712.5,3712.4,0.001]
[1753010829649,15.80799632,3712.5,3712.4,0.001]
[1753010830552,19.00159901,3712.5,3712.4,0.001]
[1753010831046,20.23159901,3712.5,3712.4,0.001]
[1753010831245,6.57474781,3712.3,3712.2,0.001]
[1753010831451,12.71554781,3712.3,3712.2,0.001]
[1753010831648,13.17214781,3712.3,3712.2,0.001]
[1753010831808,10.4784,3712.3,3712.2,0.001]
[1753010832412,11.7084,3712.3,3712.2,0.001]
[1753010832650,16.75056182,3712.3,3712.2,0.001]
[1753010832824,14.05681401,3712.3,3712.2,0.001]
[1753010833237,5.76421401,3712.3,3712.2,0.001]
[1753010833547,7.8264,3712.3,3712.2,0.001]
[1753010833852,9.6064,3712.3,3712.2,0.001]
[1753010834451,12.4364,3712.3,3712.2,0.001]
[1753010835256,7.9334,3712.3,3712.2,0.001]
[1753010835552,6.3324,3712.3,3712.2,0.001]
[1753010835856,12.97922963,3712.3,3712.2,0.001]
[1753010836154,15.81022963,3712.3,3712.2,0.001]
[1753010837030,17.04022963,3712.3,3712.2,0.001]